{"text_format":"1","workbook":"xlsx","n_sheets":18,"sheets":["Study Overview|Who Completes ","Study Overview","Study Overview Continued","Sample Preparation","Clinical Assessment","Pharmacy","Radiology-Imaging ","Blood Sciences","Pathology","Microbiology","Molecular Genetics","Medical Physics","Allied Health","Other Dept","Key Contacts Support Depts ","Guidance Notes","HELP","Lookup"],"not_rendered":{"charts":0,"images":6,"macros":1,"external_links":0,"defined_names":46,"comments":1,"pivot_tables":0},"unopened":[],"bounds":{"document_bytes":16777216,"sheet_cells":100000,"rows_first":2000,"rows_last":500,"rows_between":2000,"halvings":0,"cell_chars":16384,"cell_head_chars":4096},"cells_cut":0,"cells_raw":0,"read":"whole","date_system":"1900"}

{"sheet":"Study Overview|Who Completes ","index":0,"n_rows":4,"n_cols":5,"rows_kept":4,"cut":false,"hidden":false,"merged":[]}
["Impact Form For Clinical Trials"]
[]
[]
["Study Overview:",null,null,null,"Who completes which sections?"]

{"sheet":"Study Overview","index":1,"n_rows":72,"n_cols":11,"rows_kept":72,"cut":false,"hidden":false,"merged":[[41,1,41,5],[52,6,52,10],[42,1,42,5],[47,1,47,5],[52,1,52,5],[51,1,51,5],[42,10,43,10],[43,1,43,5],[48,1,48,5],[48,6,48,10],[44,1,44,5],[46,1,46,5],[50,1,50,5],[45,1,45,5],[50,9,51,9],[50,10,51,10],[50,7,51,7],[34,1,34,10],[35,6,35,9],[37,1,37,5],[38,1,38,5],[39,1,39,5],[36,1,36,5],[40,1,40,5],[31,1,33,1],[31,4,32,6],[32,7,32,8],[33,7,33,8],[12,1,12,10],[9,2,9,10],[10,2,10,10],[11,2,11,10],[30,7,30,10],[17,1,17,10],[13,1,13,10],[28,7,28,10],[29,7,29,10],[22,1,22,2],[22,3,22,10],[26,4,26,6],[14,2,14,5],[16,2,16,5],[21,1,21,2],[21,3,21,10],[26,7,26,10],[23,1,23,2],[23,3,23,10],[28,4,28,6],[30,4,30,6],[19,2,19,3],[53,1,53,5],[53,7,53,10],[61,7,61,10],[54,1,54,5],[55,1,55,5],[56,1,56,5],[61,1,61,5],[55,7,55,10],[56,7,56,10],[58,7,58,10],[54,7,54,10],[57,1,57,5],[57,7,57,10],[76,5,76,14],[75,5,75,10],[67,1,67,10],[68,1,68,10],[73,1,73,10],[69,1,69,2],[71,1,71,2],[60,7,60,10],[58,1,58,5],[59,1,59,5],[60,1,60,5],[59,7,59,10],[64,2,64,10],[63,2,63,10],[62,1,62,10],[14,12,14,13],[15,12,15,13],[49,1,49,5],[15,2,15,5],[18,12,18,13],[25,7,25,10],[25,4,25,6],[19,6,19,7],[19,8,19,10],[24,2,24,3],[31,7,31,8],[42,7,43,7],[42,9,43,9],[29,4,29,6],[35,1,35,5],[20,2,20,5],[20,6,20,7],[20,8,20,10],[38,10,39,10],[40,10,41,10],[38,7,39,7],[40,7,41,7],[38,9,39,9],[40,9,41,9]]}
[]
[]
[]
[]
[]
[]
[null,"Impact Form for Clinical Trials",null,null,null,null,null,null,null,null,"Research & Development"]
[]
[null,"Before you begin, please read:"]
[null,null,"1) See attached guidance document and flowchart for details and definitions of how to complete this form. "]
[null,null,"2) Should you require any further advice, please contact any of the following R&D staff who will be glad to assist you:"]
[null,null,"3) If this study involves any drug, have you pre-alerted pharmacy and forwarded any study information available to you to:  rduh.PharmacyTrials@nhs.net"]
[]
[null,"Non Commercial & Commercial Studies"]
[null,"Samantha Smart:","Research Governance & Quality Manager",null,null,null,"samantha.smart1@nhs.net"]
[null,"Lisa Treeby:","Senior Research Facilitator (Non Commercial)",null,null,null,"lisa.treeby@nhs.net"]
[null,"Elizabeth Watson","Research Facilitator (Commercial)",null,null,null,"elizabeth.watson22@nhs.net "]
[null,"Section 1: Study Overview"]
[null,"Study Title:"]
[null,"Short Title:",null,null,null,null,"R&D Number:"]
[null," Principal Investigator:",null,null,null,null,"IRAS Number:"]
[null," Trust Division | Cluster | Specialty:",null,"Please select from list:"]
[null,"Network Division | Specialty:",null,"Please select from list:"]
[null,"Trust Team:",null,"Please select from list:"]
[null,null,"Mark boxes with an \"X\""]
[null,"Type of Study:","Interventional:",null,null,null,null,"Please state the Phase of Study (If applicable)"]
[null,null,"Observational:"]
[null,null,"Non Commercial"]
[null,null,"Commercial:"]
[null,"Risk factors:","IMP:"]
[null,null,"Medical Device:",null,null,null,null,"Where will the patients be seen?"]
[null,"Are there study specific SOPs to be reviewed?","Yes",null,"If \"Yes\", please provide copy to R&D",null,null,"Inpatient:"]
[null,null,"No",null,null,null,null,"Outpatient:"]
[null,null,"Unknown",null,null,null,null,"Day case:"]
[null,"Section 2: Participants and Recruitment"]
[null,null,null,null,null,null,"Mark with an \"X\"",null,null,null,"Comments"]
[null,"Does the Trust have the patient population for the condition studied? ",null,null,null,null,"No",null,"Yes"]
[null,"Does the Trust offer a relevant clinical service/pathway from which you can recruit?",null,null,null,null,"No",null,"Yes"]
[null,"Are there any competing/conflicting trials currently recruiting?",null,null,null,null,"No",null,"Yes"]
[null,"If \"Yes\", please identify the trials."]
[null,"Is this study being conducted in patient care areas?",null,null,null,null,"No",null,"Yes"]
[null,"If \"Yes\",  list the departments and describe any space/capacity issues                                                                        "]
[null,"Does the study involve NHS patients from another Trust or organisation?",null,null,null,null,"No",null,"Yes"]
[null,"          If \"Yes\", list the Trust/organisation"]
[null,"Which hospital locations will you be using to conduct the study?  eg, Wonford, Heavitree, North Devon, Tiverton etc. \nIf \"Yes\", list the Trust/organisation locations.",null,null,null,null,"No",null,"Yes"]
[null,"Does the study involve the use of the Clinical Research Facility?  If so, how?\neg: CRF room use only, CRF Lab use only, CRF delivery team support, etc.\nPlease ensure that the CRF are notified of this: crf@exeter.ac.uk  ",null,null,null,null,"No",null,"Yes"]
[null,"Does the study require support from a Trust Research Doctor?  If so, what is required?",null,null,null,null,"No",null,"Yes"]
[null,"Will study patients need to go to another Organisation for any part of their care?",null,null,null,null,"No",null,"Yes"]
[null,"          If \"Yes\", give the name of the organisation(s)."]
[null,"          If \"Yes\", highlight one or more activities required from the list.",null,null,null,null,null,null,null,null,"You can select muliple activities from the list."]
[null,"Are the inclusion/exclusion criteria likely to hinder recruitment?                                                                          (e.g. very strict criteria)",null,null,null,null,"No",null,"Yes"]
[null,"If \"Yes\", please state why."]
[null,"What is the source of patients? (e.g. clinic, admissions, database, referrals)"]
[null,"What is the total number of eligible patients normally seen per year who will be suitable for screening? "]
[null,"What is the likely ratio of screen to recruitment?"]
[null,"What is the recruitment end date and duration of recruitment in years?"]
[null,"What is the recruitment target?"]
[null,"Is the study treatment blinded?  If so, how is this maintained?  Is there a risk of being inadvertantly unblinded?  What are the mitigating factors?  Have the relevant Trust Staff including Pharmacy been informed?"]
[null,"Is this study classed as a \"rare disease\" study by your PI? ",null,null,null,null,null,"https://www.orpha.net/orphacom/cahiers/docs/GB/List_of_rare_diseases_in_alphabetical_order.pdf"]
[null,"What date will you require the study to start?"]
[null,"Where will your first patient be identified from?"]
[null,"Risk of not meeting recruitment target (High/Med/Low). Select from dropdown list"]
[null,"Section 3: Other Implications/Benefits/Cost Savings"]
[null,"e.g Trial Income, equipment or drugs supplied:"]
[null,"Other Benefits or Implications:"]
[null,"Version 7.0",null,null,null,null,null,null,null,null,"2023-07-31"]
[]
[null,"If when you type, the box has not expanded and the text is hidden, please double click the cell and press \"Enter\"."]
[null,"The action of leaving a merged cell with text wrapping triggers a macro programme that expands the row."]
[null,"Click here for help"]
[]
[null,"Click here for Guidance Notes"]

{"sheet":"Study Overview Continued","index":2,"n_rows":58,"n_cols":16,"rows_kept":58,"cut":false,"hidden":false,"merged":[[57,1,57,3],[45,11,47,14],[48,1,48,3],[43,1,43,3],[48,11,50,14],[49,1,49,3],[49,4,49,9],[48,10,50,10],[45,10,47,10],[42,10,44,10],[50,1,50,3],[50,4,50,9],[45,4,45,9],[46,4,46,9],[45,1,47,3],[55,1,55,3],[48,15,50,15],[28,1,28,3],[28,5,28,16],[29,5,29,16],[30,5,30,16],[32,1,32,3],[44,4,44,9],[34,4,34,7],[34,9,34,16],[33,9,33,16],[32,9,32,16],[35,1,35,16],[36,1,36,3],[48,4,48,9],[42,4,42,9],[42,1,42,3],[20,1,20,3],[36,8,36,10],[25,12,25,16],[29,1,29,3],[30,1,30,3],[26,5,26,16],[20,4,20,9],[36,11,36,16],[20,11,20,16],[31,1,31,16],[26,1,26,3],[27,1,27,3],[24,1,24,16],[25,1,25,3],[33,4,33,7],[32,4,32,7],[2,3,2,5],[12,1,12,3],[8,1,8,16],[9,1,9,3],[9,4,9,16],[10,1,10,3],[10,4,10,16],[11,1,11,3],[11,4,11,16],[12,4,12,16],[16,1,16,3],[16,4,16,16],[17,1,17,3],[17,4,17,16],[7,1,7,16],[15,8,15,10],[15,11,15,16],[14,1,14,16],[13,11,13,16],[13,4,13,9],[13,1,13,3],[15,1,15,3],[18,1,18,3],[18,4,18,16],[19,1,19,3],[19,4,19,16],[43,4,43,9],[22,1,22,3],[22,4,22,16],[21,1,21,3],[21,8,21,10],[21,11,21,16],[23,1,23,3],[23,8,23,10],[23,11,23,16],[25,4,25,7],[25,9,25,10],[27,5,27,16],[47,4,47,9],[37,17,40,17],[38,1,38,3],[39,1,39,3],[40,1,40,3],[37,1,37,16],[38,4,38,16],[39,4,39,9],[40,4,40,9],[41,1,41,16],[42,11,44,14],[44,1,44,3]]}
[null,"R&D No:",null,{"$f":"'Study Overview'!I20","v":0}]
[null,"IRAS No:",null,{"$f":"'Study Overview'!I21","v":0}]
[null,"Short Title:",null,{"$f":"'Study Overview'!C20","v":0}]
[null,"Investigator:",null,{"$f":"'Study Overview'!C21","v":0}]
[]
[]
[null,"Impact Form for Clinical Trials",null,null,null,null,null,null,null,null,null,null,null,"Research & Development"]
[null,"Type \"X\" as required for \"Yes/No\" boxes."]
[null,"Section 4: Standard Treatment (If drug study, complete information on Pharmacy tab)"]
[null,"Current Standard Treatment:"]
[null,"Number of Cycles or Therapies (If applicable):",null,null,"     "]
[null,"Follow-Up Frequency:"]
[null,"Duration of Follow-up:"]
[null,"Conducted By:",null,null,null,null,null,null,null,null,"Other:"]
[null,"Section 5: Trial Information"]
[null,"Does Trial Treatment plan or follow-up differ from Standard Care?",null,null,"No",null,"Yes",null,"If \"Yes\", please give details:"]
[null,"Trial Treatment :"]
[null,"Number of Cycles or Therapies (If applicable):",null,null,"     "]
[null,"Follow-Up Frequency:"]
[null,"Duration of Follow-up:"]
[null,"Conducted By:",null,null,null,null,null,null,null,null,"Other:"]
[null,"Implications for Clinical  Area / Ward:\n(Co-ordination of investigations / tests, Day Ward / Case Unit, Outpatient Clinics, Overnight stays)",null,null,"No",null,"Yes",null,"If \"Yes\", please give details:"]
[null,"Other:"]
[null,"Are there any cost savings  from  running the study?",null,null,"No",null,"Yes",null,"If \"Yes\", please give details:"]
[null,"Section 6: Follow Up Complexity"]
[null,"Is the study interventional or observational?",null,null,"Interventional",null,null,null,null,"Observational"]
[null,"Interventional Level 1:",null,null,null,"Patient is subject to a care intervention which forms part of a research protocol and is an alteration to the normal care pathway.  Visit will require > 3 hours of research team time."]
[null,"Interventional Level 2:",null,null,null,"Patient has completed the ‘active’ interventional stage of the study.  The visit will require > 2 hour research team time."]
[null,"Interventional Level 3:",null,null,null,"Patient is attending for simple follow-up, face to face or telecom.   Visit will require < 2 hours of research team time."]
[null,"Observational Level 1:",null,null,null,"Patient visit includes clinical data collection undertaken by local study team. The visit will require > 2 hours research team time."]
[null,"Observational Level 2:",null,null,null,"Patient has study data collected that does not include clinical investigations or assessments but requires face to face contact.  The visit will require < 2 hours research team time."]
[null,"Section 7: Data Protection"]
[null,"How will collected data be recorded?",null,null,"On-line Database:"]
[null,null,null,null,"Paper CRFs:"]
[null,null,null,null,"Custom Database:",null,null,null,null,"Please give details:"]
[null,"Section 8: IT - Software / Hardware Implications"]
[null,"Does the Study require specific hardware / software applications?",null,null,"No",null,"Yes",null,"If \"Yes\", please give details:"]
[null,"Section 9: Contact Details"]
[null,"Administrator Contact",null,null,"(For purposes of protocol amendments etc)"]
[null,"Name:"]
[null,"Email:"]
[null,"Section 10: Review Statement"]
[null,"Please Print",null,null,null,null,null,null,null,null,"Signed:"]
[null,"Form completed by:",null,null,null,null,null,null,null,null,null,null,null,null,null,"Date:"]
[null,"Email:"]
[null," Principal Investigator:",null,null,null,null,null,null,null,null,"Signed:"]
[null,null,null,null,null,null,null,null,null,null,null,null,null,null,null,"Date:"]
[]
[null,"Team Lead:",null,null,null,null,null,null,null,null,"Signed:",null,null,null,null,"Date:"]
[]
[]
[]
[]
[null,{"$f":"'Study Overview'!B68","v":"If when you type, the box has not expanded and the text is hidden, please double click the cell and press \"Enter\"."}]
[null,{"$f":"'Study Overview'!B69","v":"The action of leaving a merged cell with text wrapping triggers a macro programme that expands the row."}]
[null,"Click here for help"]
[]
[null,"Click here for Guidance Notes"]

{"sheet":"Sample Preparation","index":3,"n_rows":61,"n_cols":16,"rows_kept":61,"cut":false,"hidden":false,"merged":[[18,1,18,3],[18,8,18,16],[19,1,19,3],[35,12,35,16],[29,12,29,16],[30,12,30,16],[31,12,31,16],[32,12,32,16],[33,12,33,16],[34,12,34,16],[35,2,35,3],[27,1,27,16],[22,8,22,16],[22,1,22,7],[23,1,24,3],[23,8,24,16],[11,1,11,3],[11,4,11,7],[11,8,11,16],[12,1,12,3],[12,8,12,12],[8,1,8,16],[1,3,1,5],[2,3,2,5],[7,1,7,16],[9,1,9,16],[60,1,60,3],[58,1,58,3],[49,12,49,16],[44,12,44,16],[45,12,45,16],[54,1,54,16],[51,8,51,16],[50,1,50,7],[51,1,51,7],[47,12,47,16],[50,8,50,16],[48,12,48,16],[48,6,48,7],[49,6,49,7],[48,1,49,5],[47,1,47,7],[25,8,26,16],[28,1,28,3],[28,4,28,7],[40,15,40,16],[25,1,26,7],[36,1,36,7],[38,1,38,7],[39,1,39,7],[40,1,40,7],[37,8,37,16],[37,1,37,7],[34,2,34,3],[28,8,28,16],[36,8,36,16],[44,1,44,7],[45,1,45,7],[46,1,46,7],[38,8,38,16],[39,8,39,16],[41,8,41,16],[40,8,40,9],[40,10,40,11],[40,13,40,14],[41,1,41,7],[43,1,43,7],[43,12,43,16],[46,12,46,16],[42,8,42,16],[42,1,42,7],[10,8,10,16],[10,1,10,3],[20,8,20,16],[19,8,19,16],[14,1,14,3],[14,4,14,7],[14,8,14,16],[15,1,15,3],[15,8,15,16],[16,1,16,3],[16,8,16,16],[17,1,17,3],[17,8,17,16],[13,1,13,3],[13,8,13,11],[13,12,13,16]]}
[null,"R&D No:",null,{"$f":"'Study Overview'!I20","v":0}]
[null,"IRAS No:",null,{"$f":"'Study Overview'!I21","v":0}]
[null,"Short Title:",null,{"$f":"'Study Overview'!C20","v":0}]
[null,"Investigator:",null,{"$f":"'Study Overview'!C21","v":0}]
[]
[]
[null,"Impact Form for Clinical Trials",null,null,null,null,null,null,null,null,null,null,null,null,"Research & Development"]
[null,"Type \"X\" as required for \"Yes/No\" boxes."]
[null,"Section 12: Sample Preparation and Handling"]
[null,"In order to ensure that we are following our legal obligations please fill this form for all\nresearch samples that you would like to store in RDUH Freezers / Ambient Tissue Cupboards."]
[null,"Will you be undertaking sample preparation etc?",null,null,"No",null,"Yes",null,"If the answer to this is \"No\", please move to Clinical Assessment tab."]
[null,"Spinning Bloods:"]
[null,"Will you be spinning bloods?",null,null,"No",null,"Yes",null,"If “Yes”, do you  have access to a centrifuge?",null,null,null,null,"No",null,"Yes"]
[null,null,null,null,null,null,null,null,"Location of centrifuge:"]
[null,"Dry Ice:",null,null,null,null,null,null,"Comment:"]
[null,"Will you be using dry ice?",null,null,"No",null,"Yes"]
[null,"Will samples be shipped in dry Ice?",null,null,"No",null,"Yes"]
[null,"Do you require training for handling dry ice?",null,null,"No",null,"Yes"]
[null,"Do you have protective gloves?",null,null,"No",null,"Yes"]
[null,"Have you read the dry ice SOP?",null,null,"No",null,"Yes"]
[null,null,null,null,null,null,null,null,"Comment:"]
[null,null,null,"Have you read the dry ice SOP? Insert link"]
[null,"How are your samples labelled/identifed?\n(e.g Study Name / Number)"]
[null,"Will you be storing samples ?",null,null,"No",null,"Yes",null,"If the answer to this questions is “No”, please ignore Section 12."]
[]
[null,null,null,null,null,null,null,null,"If the answer to this questions is “Yes”, please select “Sample Types” below and give the location:"]
[]
[null,"Section 13: Sample Storage"]
[null,"Sample Types:"]
[null,null,null,"Tissue ","No",null,"Yes",null,"No",null,"Yes"]
[null,null,null,"Blood","No",null,"Yes",null,"No",null,"Yes"]
[null,null,null,"Swabs","No",null,"Yes",null,"No",null,"Yes"]
[null,null,null,"Urine","No",null,"Yes",null,"No",null,"Yes"]
[null,null,null,"Faecal Matter","No",null,"Yes",null,"No",null,"Yes"]
[null,"Other: ",null,null,"No",null,"Yes",null,"No",null,"Yes"]
[null,"Other: ",null,null,"No",null,"Yes",null,"No",null,"Yes"]
[null,"How will your samples be stored?"]
[null,"Further storage details:"]
[null,"How many samples (approximately, in total) will you be storing?"]
[null,"How frequently will you be storing samples (weekly, daily etc)?"]
[null,"Approximate dates for collection:",null,null,null,null,null,null,"Start Date:",null,null,null,"End Date:"]
[null,"Are these samples for long term storage, or will they be shipped elsewhere? (e.g. off site within a year or less)"]
[null,"For relevant material only †",null,null,null,null,null,null,"Comment:"]
[null,"Have you completed the permission to store form available on the R&D webpage of the Trust Intranet? www.royaldevon.nhs.uk \nIf no, please indicate why not.  \nTo discuss further, please contact: \nClinical Research Facility Lab Manager - CRF@Exeter.ac.uk",null,null,null,null,null,null,"No",null,"Yes"]
[null,"Are the samples collected before 01 Sept 2006?   ",null,null,null,null,null,null,"No",null,"Yes"]
[null,"Were these samples collected in the UK?   ",null,null,null,null,null,null,"No",null,"Yes"]
[null,"Do you want to keep the samples after the ethics expires?   ",null,null,null,null,null,null,"No",null,"Yes"]
[null,"Has enduring consent for use in research been given?\n(please provide evidence in terms of PIS and consent form for the study; \ncan be emailed / sent with this form).",null,null,null,null,null,null,"No",null,"Yes"]
[null,"Evidence provided:",null,null,null,null,"PIS:",null,"No",null,"Yes"]
[null,null,null,null,null,null,"Consent:",null,"No",null,"Yes"]
[null,"Where can a record of all consent forms be found?"]
[null,"Where can a paper/electronic record of all samples taken be found?"]
[]
[null,"List of designated persons is available from Samantha Smart - Samantha.Smart1@nhs.net / Ext: 6972"]
[null,"† Human Tissue Act, Section 53 para 1: “In this Act, \"relevant material\" means material... which consists of or includes human cells.”\n(Plasma and urine are both relevant material unless specifically treated to become acellular. Please provide details if this is the case)"]
[]
[null,{"$f":"'Study Overview'!B68","v":"If when you type, the box has not expanded and the text is hidden, please double click the cell and press \"Enter\"."}]
[null,{"$f":"'Study Overview'!B69","v":"The action of leaving a merged cell with text wrapping triggers a macro programme that expands the row."}]
[null,"Click here for help"]
[]
[null,"Click here for Guidance Notes"]

{"sheet":"Clinical Assessment","index":4,"n_rows":44,"n_cols":8,"rows_kept":44,"cut":false,"hidden":false,"merged":[[27,2,27,3],[27,4,27,5],[0,1,0,7],[19,1,19,7],[20,2,20,3],[20,4,20,5],[21,2,21,3],[21,4,21,5],[22,2,22,3],[22,4,22,5],[23,2,23,3],[23,4,23,5],[26,1,26,7],[38,2,38,3],[28,2,28,3],[28,4,28,5],[29,2,29,3],[29,4,29,5],[30,2,30,3],[30,4,30,5],[33,1,33,4],[34,2,34,3],[35,2,35,3],[36,2,36,3],[37,2,37,3]]}
[null,"Clinical Assessment for Research Trials/Studies"]
[]
[null,"Study Name:",null,null,"Study Number:"]
[]
[null,"CI/PI:",null,null,"Team Lead:"]
[]
[null,"Study RN/RA: "]
[]
[]
[null,null,null,"Mark if appropriate",null,"Mark If appropriate"]
[1,"Does the study involve the administration of a new medication?","No - go to Q2",null,"Yes - complete table 1 & go to Q2"]
[]
[2,"Does the study involve clinical procedure/s?","No - go to Q4",null,"Yes - go to Q3"]
[]
[3,"Are all procedures already part of standard care in the Trust and covered by policy/SOPs/work instructions?","No - complete table 2",null,"Yes - go to Q4"]
[]
[4,"Are there any other potential clinical risks in the study which need to be mitigated?","Yes - go to table 3",null,"No - assessment complete, sign off"]
[]
[]
[null,"Table 1 - New Medications to Trust or CTIMP (add lines as required)"]
[null,"List new medication/s","Method of delivery",null,"Who will deliver",null,"Potential risks","Mitigation"]
[]
[]
[]
[]
[]
[null,"Table 2 - New Procedures (add lines as required)"]
[null,"List new procedure/s","Type of procedure",null,"Who will deliver",null,"Potential risks","Mitigation"]
[]
[]
[]
[]
[]
[null,"Table 3 - other clinical risks (add lines as required)"]
[null,"Other risk/s","Who will be involved with delivery",null,"Mitigation"]
[]
[]
[]
[]
[]
[]
[null,"Name person completing form:",null,"Date:"]
[]
[null,"CI/PI has reviewed and agreed?",null,"Date:"]

{"sheet":"Pharmacy","index":5,"n_rows":46,"n_cols":10,"rows_kept":46,"cut":false,"hidden":false,"merged":[[45,1,45,2],[43,1,43,2],[37,7,37,8],[35,10,35,11],[35,1,35,2],[35,3,35,5],[37,3,37,5],[39,1,39,11],[38,7,38,8],[38,3,38,5],[14,1,14,2],[29,3,29,5],[23,1,23,11],[34,3,34,5],[36,7,36,8],[25,4,25,5],[25,7,25,11],[26,7,26,11],[27,7,27,11],[34,7,34,8],[31,1,31,2],[33,3,33,11],[31,3,32,5],[35,7,35,8],[36,3,36,5],[18,3,18,11],[1,2,1,5],[2,2,2,5],[8,1,8,8],[10,1,10,11],[8,9,8,10],[9,1,9,11],[11,1,11,11],[12,1,12,2],[12,3,12,11],[25,1,25,2],[30,1,30,2],[16,1,16,2],[26,1,26,2],[14,3,14,11],[27,1,27,2],[22,1,22,2],[20,1,20,2],[18,1,18,2],[13,1,13,2],[16,3,16,11],[13,3,13,11],[21,3,21,11],[15,3,15,11],[24,1,24,2],[17,1,17,11],[30,3,30,5],[19,1,19,2],[26,4,26,5],[20,3,20,11],[15,1,15,2],[19,3,19,11],[21,1,21,2],[33,1,33,2],[27,4,27,5],[22,3,22,11],[28,1,28,11],[24,4,24,5],[24,7,24,11]]}
[null,"R&D No:",{"$f":"'Study Overview'!I20","v":0}]
[null,"IRAS No:",{"$f":"'Study Overview'!I21","v":0}]
[null,"Short Title:",{"$f":"'Study Overview'!C20","v":0}]
[null,"Investigator:",{"$f":"'Study Overview'!C21","v":0}]
[]
[]
[null,"Impact Form for Clinical Trials",null,null,null,null,null,null,null,"Research & Development"]
[]
[null,"Pharmacy Involvement",null,null,null,null,null,null,null,"Enter \"X\" for Not Required:"]
[null,"You should have pre-alerted Pharmacy before completion of this form."]
[null,"Please identify all drugs that are required as part of the trial or contact the Pharmacy Clinical Trials team - <rduh.PharmacyTrials@nhs.net> - Ext. 2444"]
[null,"Standard Drug Treatment - As for Patient NOT on Trial"]
[null,"Drug Name:"]
[null,"Dose:"]
[null,"Frequency:"]
[null,"Length of Cycle:"]
[null,"Other:"]
[null,"Trial Drug Treatment"]
[null,"Drug Name:"]
[null,"Dose:"]
[null,"Frequency:"]
[null,"Length of Cycle:"]
[null,"Other:"]
[null,"For Pharmacy Use Only"]
[null,null,null,"Involved (X)= Yes","No of Dispenses In Addition To Standard Treatment",null,"Number of Dispenses Instead of Standard Treatment","Comments"]
[null,"Dispensary:",null,null,null,null," "]
[null,"Aseptic Unit",null,null,null,null," "]
[null,"Pharmacy review of drug storage:"]
[null,"Note: This form will not be submitted by R&D"]
[]
[null,"Date submitted to department:"]
[null,"Please print Submitted by:"]
[]
[null,"Approval Conditions:"]
[null,"Please print"]
[null,"Name of person giving approval:",null,null,null,null,"Approval Signature:",null,null,"Date:"]
[null,null,"Title:",null,null,null,"For additional procedures only"]
[null,null,"Contact Number:"]
[]
[]
[]
[null,{"$f":"'Study Overview'!B68","v":"If when you type, the box has not expanded and the text is hidden, please double click the cell and press \"Enter\"."}]
[null,{"$f":"'Study Overview'!B69","v":"The action of leaving a merged cell with text wrapping triggers a macro programme that expands the row."}]
[null,"Click here for help"]
[]
[null,"Click here for Guidance Notes"]

{"sheet":"Radiology-Imaging ","index":6,"n_rows":44,"n_cols":10,"rows_kept":44,"cut":false,"hidden":false,"merged":[[22,1,22,2],[22,4,22,5],[22,6,22,11],[37,1,37,11],[31,1,31,2],[33,10,33,11],[34,3,34,5],[32,3,32,5],[32,7,32,8],[34,7,34,8],[35,3,35,5],[35,7,35,8],[36,3,36,5],[36,7,36,8],[1,2,1,5],[2,2,2,5],[8,1,8,8],[14,4,14,5],[16,6,16,11],[14,1,14,2],[11,6,11,11],[16,4,16,5],[12,6,12,11],[14,6,14,11],[15,6,15,11],[8,9,8,10],[9,1,9,11],[19,4,19,5],[15,4,15,5],[12,4,12,5],[10,4,10,5],[10,6,10,11],[18,4,18,5],[19,1,19,2],[19,6,19,11],[10,1,10,2],[17,6,17,11],[17,1,17,2],[17,4,17,5],[13,1,13,2],[13,4,13,5],[13,6,13,11],[18,6,18,11],[11,1,11,2],[12,1,12,2],[15,1,15,2],[11,4,11,5],[16,1,16,2],[18,1,18,2],[43,1,43,2],[27,1,27,2],[41,1,41,2],[28,3,28,5],[31,3,31,11],[29,1,29,2],[33,1,33,2],[33,3,33,5],[33,7,33,8],[20,6,20,11],[29,3,30,5],[27,3,27,5],[21,6,21,11],[24,6,24,11],[26,1,26,11],[20,1,20,2],[25,1,25,2],[25,4,25,5],[25,6,25,11],[20,4,20,5],[24,4,24,5],[24,1,24,2],[28,1,28,2],[21,1,21,2],[21,4,21,5]]}
[null,"R&D No:",{"$f":"'Study Overview'!I20","v":0}]
[null,"IRAS No:",{"$f":"'Study Overview'!I21","v":0}]
[null,"Short Title:",{"$f":"'Study Overview'!C20","v":0}]
[null,"Investigator:",{"$f":"'Study Overview'!C21","v":0}]
[]
[]
[null,"Impact Form for Clinical Trials",null,null,null,null,null,null,null,"Research & Development"]
[]
[null,"Involvement of Service Department -  Radiology / Imaging",null,null,null,null,null,null,null,"Enter \"X\" for Not Required:"]
[null,"Please identify all tests that are required as part of the trial that are in addition to routine procedures."]
[null,"Service Department",null,"Involved (X)= Yes","No of Tests In Addition To Routine Care per patient",null,"Comments/Additional Requirements"]
[null,"Carotid and Peripheral Arteria:"]
[null,"CT Scanning:"]
[null,"CT Scans with contrast:"]
[null,"Fluoroscopy:"]
[null,"Interventional / Special Procedures:"]
[null,"Intravenous Urogram - IVU:"]
[null,"MRI Scanning:"]
[null,"MRI Scans with contrast:"]
[null,"Plain X-rays:"]
[null,"Ultrasound:"]
[null,"Bone Densitometry (DXA Scans):"]
[null,"Nuclear Medicine:"]
[null,null,"Test Scans"]
[null,"Copy Scans (PACS)"]
[null,"Other:"]
[null,"R&D will submit this form for you, unless this has previously been actioned."]
[null,"If previously actioned:"]
[null,"Date submitted to department:"]
[null,"Please print Submitted by:"]
[]
[null,"Approval Conditions:",null,"Confirmary of Capacity / Clinical Radiation Expert "]
[null,"Please print"]
[null,"Name of person giving approval:",null,null,null,null,"Approval Signature:",null,null,"Date:"]
[null,null,"Title:",null,null,null,"or email confirmation"]
[null,null,"Contact Number:"]
[]
[]
[]
[null,{"$f":"'Study Overview'!B68","v":"If when you type, the box has not expanded and the text is hidden, please double click the cell and press \"Enter\"."}]
[null,{"$f":"'Study Overview'!B69","v":"The action of leaving a merged cell with text wrapping triggers a macro programme that expands the row."}]
[null,"Click here for help"]
[]
[null,"Click here for Guidance Notes"]

{"sheet":"Blood Sciences","index":7,"n_rows":40,"n_cols":10,"rows_kept":40,"cut":false,"hidden":false,"merged":[[17,1,17,2],[15,1,15,2],[8,1,8,8],[8,9,8,10],[27,3,27,11],[28,7,28,8],[32,7,32,8],[21,4,21,5],[1,2,1,5],[2,2,2,5],[29,1,29,2],[19,1,19,2],[27,1,27,2],[20,1,20,2],[9,1,9,11],[11,1,11,2],[22,1,22,11],[21,6,21,11],[17,6,17,11],[14,1,14,2],[20,6,20,11],[24,1,24,2],[24,3,24,5],[25,1,25,2],[23,3,23,5],[23,1,23,2],[21,1,21,2],[28,3,28,5],[39,1,39,2],[37,1,37,2],[32,3,32,5],[33,1,33,11],[29,10,29,11],[11,6,11,11],[30,3,30,5],[31,3,31,5],[30,7,30,8],[31,7,31,8],[14,4,14,5],[15,4,15,5],[16,4,16,5],[17,4,17,5],[18,6,18,11],[14,6,14,11],[29,7,29,8],[18,4,18,5],[19,4,19,5],[29,3,29,5],[19,6,19,11],[16,6,16,11],[25,3,26,5],[20,4,20,5],[11,4,11,5],[10,1,10,2],[12,6,12,11],[13,1,13,2],[12,1,12,2],[16,1,16,2],[15,6,15,11],[10,4,10,5],[10,6,10,11],[13,6,13,11],[18,1,18,2],[12,4,12,5],[13,4,13,5]]}
[null,"R&D No:",{"$f":"'Study Overview'!I20","v":0}]
[null,"IRAS No:",{"$f":"'Study Overview'!I21","v":0}]
[null,"Short Title:",{"$f":"'Study Overview'!C20","v":0}]
[null,"Investigator:",{"$f":"'Study Overview'!C21","v":0}]
[]
[]
[null,"Impact Form for Clinical Trials",null,null,null,null,null,null,null,"Research & Development"]
[]
[null,"Involvement of Service Department -  Blood Sciences",null,null,null,null,null,null,null,"Enter \"X\" for Not Required:"]
[null,"Please identify all tests that are required as part of the trial that are in addition to routine procedures."]
[null,"Service Department",null,"Type of Test Involved (X)= Yes","No of Samples In Addition To Routine Care per patient",null,"List samples required e.g. sodium, potassium.  Please detail breakdown of tests \neg: 1 x TFTs (T4, T3, TSH)"]
[null,"Blood Transfusion:"]
[null,"Biochemistry / Clinical Chemistry:"]
[null,"Haematology:"]
[null,"Immunology:"]
[null,"Phlebotomy:"]
[null,"Other:"]
[]
[]
[]
[]
[]
[null,"R&D will submit this form for you, unless this has previously been actioned."]
[null,"If previously actioned:"]
[null,"Date submitted to department:"]
[null,"Please print Submitted by:"]
[]
[null,"Approval Conditions:"]
[null,"Please print"]
[null,"Name of person giving approval:",null,null,null,null,"Approval Signature:",null,null,"Date:"]
[null,null,"Title:",null,null,null,"or email confirmation"]
[null,null,"Contact Number:"]
[]
[]
[]
[null,{"$f":"'Study Overview'!B68","v":"If when you type, the box has not expanded and the text is hidden, please double click the cell and press \"Enter\"."}]
[null,{"$f":"'Study Overview'!B69","v":"The action of leaving a merged cell with text wrapping triggers a macro programme that expands the row."}]
[null,"Click here for help"]
[]
[null,"Click here for Guidance Notes"]

{"sheet":"Pathology","index":8,"n_rows":39,"n_cols":10,"rows_kept":39,"cut":false,"hidden":false,"merged":[[11,1,11,2],[11,4,11,5],[11,6,11,11],[1,2,1,5],[2,2,2,5],[8,1,8,8],[9,1,9,11],[10,1,10,2],[10,4,10,5],[10,6,10,11],[8,9,8,10],[12,4,12,5],[12,6,12,11],[13,1,13,2],[13,4,13,5],[13,6,13,11],[14,1,14,2],[14,4,14,5],[14,6,14,11],[15,4,15,5],[15,6,15,11],[15,1,15,2],[16,1,16,2],[16,4,16,5],[16,6,16,11],[17,1,17,2],[17,4,17,5],[17,6,17,11],[18,1,18,2],[18,4,18,5],[18,6,18,11],[19,1,19,2],[19,4,19,5],[19,6,19,11],[26,1,26,2],[26,3,26,11],[27,3,27,5],[27,7,27,8],[20,1,20,2],[20,4,20,5],[20,6,20,11],[22,3,22,5],[23,1,23,2],[23,3,23,5],[21,1,21,11],[22,1,22,2],[24,1,24,2],[24,3,25,5],[38,1,38,2],[30,3,30,5],[30,7,30,8],[31,3,31,5],[31,7,31,8],[32,1,32,11],[36,1,36,2],[28,1,28,2],[28,3,28,5],[28,7,28,8],[28,10,28,11],[29,3,29,5],[29,7,29,8]]}
[null,"R&D No:",{"$f":"'Study Overview'!I20","v":0}]
[null,"IRAS No:",{"$f":"'Study Overview'!I21","v":0}]
[null,"Short Title:",{"$f":"'Study Overview'!C20","v":0}]
[null,"Investigator:",{"$f":"'Study Overview'!C21","v":0}]
[]
[]
[null,"Impact Form for Clinical Trials",null,null,null,null,null,null,null,"Research & Development"]
[]
[null,"Involvement of Service Department - Pathology",null,null,null,null,null,null,null,"Enter \"X\" for Not Required:"]
[null,"Please identify all tests that are required as part of the trial that are in addition to routine procedures."]
[null,"Service Department",null,"Type of Test Involved (X)= Yes","No of Samples In Addition To Routine Care per patient",null,"Comments"]
[null,"Pathology:"]
[null,"Other:"]
[]
[]
[]
[]
[]
[]
[]
[]
[null,"R&D will submit this form for you, unless this has previously been actioned."]
[null,"If previously actioned:"]
[null,"Date submitted to department:"]
[null,"Please print Submitted by:"]
[]
[null,"Approval Conditions:"]
[null,"Please print"]
[null,"Name of person giving approval:",null,null,null,null,"Approval Signature:",null,null,"Date:"]
[null,null,"Title:",null,null,null,"or email confirmation"]
[null,null,"Contact Number:"]
[]
[]
[]
[null,{"$f":"'Study Overview'!B68","v":"If when you type, the box has not expanded and the text is hidden, please double click the cell and press \"Enter\"."}]
[null,{"$f":"'Study Overview'!B69","v":"The action of leaving a merged cell with text wrapping triggers a macro programme that expands the row."}]
[null,"Click here for help"]
[]
[null,"Click here for Guidance Notes"]

{"sheet":"Microbiology","index":9,"n_rows":40,"n_cols":10,"rows_kept":40,"cut":false,"hidden":false,"merged":[[37,1,37,2],[39,1,39,2],[16,1,16,2],[30,3,30,5],[30,7,30,8],[31,3,31,5],[31,7,31,8],[32,3,32,5],[32,7,32,8],[29,1,29,2],[29,3,29,5],[29,7,29,8],[22,1,22,11],[23,1,23,2],[23,3,23,5],[24,1,24,2],[29,10,29,11],[33,1,33,11],[25,1,25,2],[25,3,26,5],[27,1,27,2],[27,3,27,11],[28,3,28,5],[28,7,28,8],[24,3,24,5],[20,1,20,2],[20,4,20,5],[20,6,20,11],[21,1,21,2],[21,4,21,5],[21,6,21,11],[18,1,18,2],[18,4,18,5],[18,6,18,11],[19,1,19,2],[19,4,19,5],[19,6,19,11],[16,4,16,5],[16,6,16,11],[17,1,17,2],[17,4,17,5],[17,6,17,11],[12,4,12,5],[12,6,12,11],[12,1,12,2],[15,1,15,2],[15,4,15,5],[15,6,15,11],[13,4,13,5],[13,6,13,11],[14,1,14,2],[14,4,14,5],[14,6,14,11],[11,1,11,2],[1,2,1,5],[2,2,2,5],[8,1,8,8],[8,9,8,10],[9,1,9,11],[10,1,10,2],[10,4,10,5],[10,6,10,11],[11,4,11,5],[11,6,11,11]]}
[null,"R&D No:",{"$f":"'Study Overview'!I20","v":0}]
[null,"IRAS No:",{"$f":"'Study Overview'!I21","v":0}]
[null,"Short Title:",{"$f":"'Study Overview'!C20","v":0}]
[null,"Investigator:",{"$f":"'Study Overview'!C21","v":0}]
[]
[]
[null,"Impact Form for Clinical Trials",null,null,null,null,null,null,null,"Research & Development"]
[]
[null,"Involvement of Service Department - Microbiology & Virology",null,null,null,null,null,null,null,"Enter \"X\" for Not Required:"]
[null,"Please identify all tests that are required as part of the trial that are in addition to routine procedures."]
[null,"Service Department",null,"Type of Test Involved (X)= Yes","No of Samples In Addition To Routine Care per patient",null,"Comments"]
[null,"Microbiology:"]
[null,"Virology:"]
[null,"Other:"]
[]
[]
[]
[]
[]
[]
[]
[]
[null,"R&D will submit this form for you, unless this has previously been actioned."]
[null,"If previously actioned:"]
[null,"Date submitted to department:"]
[null,"Please print Submitted by:"]
[]
[null,"Approval Conditions:"]
[null,"Please print"]
[null,"Name of person giving approval:",null,null,null,null,"Approval Signature:",null,null,"Date:"]
[null,null,"Title:",null,null,null,"or email confirmation"]
[null,null,"Contact Number:"]
[]
[]
[]
[null,{"$f":"'Study Overview'!B68","v":"If when you type, the box has not expanded and the text is hidden, please double click the cell and press \"Enter\"."}]
[null,{"$f":"'Study Overview'!B69","v":"The action of leaving a merged cell with text wrapping triggers a macro programme that expands the row."}]
[null,"Click here for help"]
[]
[null,"Click here for Guidance Notes"]

{"sheet":"Molecular Genetics","index":10,"n_rows":40,"n_cols":10,"rows_kept":40,"cut":false,"hidden":false,"merged":[[37,1,37,2],[39,1,39,2],[16,1,16,2],[30,3,30,5],[30,7,30,8],[31,3,31,5],[31,7,31,8],[32,3,32,5],[32,7,32,8],[29,1,29,2],[29,3,29,5],[29,7,29,8],[22,1,22,11],[23,1,23,2],[23,3,23,5],[24,1,24,2],[29,10,29,11],[33,1,33,11],[25,1,25,2],[25,3,26,5],[27,1,27,2],[27,3,27,11],[28,3,28,5],[28,7,28,8],[24,3,24,5],[20,1,20,2],[20,4,20,5],[20,6,20,11],[21,1,21,2],[21,4,21,5],[21,6,21,11],[18,1,18,2],[18,4,18,5],[18,6,18,11],[19,1,19,2],[19,4,19,5],[19,6,19,11],[16,4,16,5],[16,6,16,11],[17,1,17,2],[17,4,17,5],[17,6,17,11],[14,1,14,2],[14,4,14,5],[14,6,14,11],[15,1,15,2],[15,4,15,5],[15,6,15,11],[10,1,10,2],[10,4,10,5],[10,6,10,11],[13,1,13,2],[13,4,13,5],[13,6,13,11],[11,1,11,2],[11,4,11,5],[11,6,11,11],[12,4,12,5],[12,6,12,11],[1,2,1,5],[2,2,2,5],[8,1,8,8],[8,9,8,10],[9,1,9,11]]}
[null,"R&D No:",{"$f":"'Study Overview'!I20","v":0}]
[null,"IRAS No:",{"$f":"'Study Overview'!I21","v":0}]
[null,"Short Title:",{"$f":"'Study Overview'!C20","v":0}]
[null,"Investigator:",{"$f":"'Study Overview'!C21","v":0}]
[]
[]
[null,"Impact Form for Clinical Trials",null,null,null,null,null,null,null,"Research & Development"]
[]
[null,"Involvement of Service Department - Molecular Genetics",null,null,null,null,null,null,null,"Enter \"X\" for Not Required:"]
[null,"Please identify all tests that are required as part of the trial that are in addition to routine procedures."]
[null,"Service Department",null,"Type of Test Involved (X)= Yes","No of Samples In Addition To Routine Care per patient",null,"Comments"]
[null,"Molecular Genetics:"]
[null,"Other:"]
[]
[]
[]
[]
[]
[]
[]
[]
[]
[null,"R&D will submit this form for you, unless this has previously been actioned."]
[null,"If previously actioned:"]
[null,"Date submitted to department:"]
[null,"Please print Submitted by:"]
[]
[null,"Approval Conditions:"]
[null,"Please print"]
[null,"Name of person giving approval:",null,null,null,null,"Approval Signature:",null,null,"Date:"]
[null,null,"Title:",null,null,null,"or email confirmation"]
[null,null,"Contact Number:"]
[]
[]
[]
[null,{"$f":"'Study Overview'!B68","v":"If when you type, the box has not expanded and the text is hidden, please double click the cell and press \"Enter\"."}]
[null,{"$f":"'Study Overview'!B69","v":"The action of leaving a merged cell with text wrapping triggers a macro programme that expands the row."}]
[null,"Click here for help"]
[]
[null,"Click here for Guidance Notes"]

{"sheet":"Medical Physics","index":11,"n_rows":33,"n_cols":10,"rows_kept":33,"cut":false,"hidden":false,"merged":[[10,6,10,11],[8,9,8,10],[8,1,8,8],[11,4,11,5],[10,1,10,2],[9,1,9,11],[10,4,10,5],[11,6,11,11],[1,2,1,5],[2,2,2,5],[13,1,13,2],[11,1,11,2],[12,1,12,2],[32,1,32,2],[13,6,13,11],[25,7,25,8],[22,3,22,5],[23,3,23,5],[24,3,24,5],[22,10,22,11],[23,7,23,8],[26,1,26,11],[13,4,13,5],[22,7,22,8],[20,3,20,11],[14,1,14,2],[14,6,14,11],[30,1,30,2],[25,3,25,5],[24,7,24,8],[14,4,14,5],[12,4,12,5],[15,1,15,11],[16,1,16,2],[20,1,20,2],[21,3,21,5],[17,1,17,2],[17,3,17,5],[18,1,18,2],[18,3,19,5],[22,1,22,2],[12,6,12,11],[16,3,16,5],[21,7,21,8]]}
[null,"R&D No:",{"$f":"'Study Overview'!I20","v":0}]
[null,"IRAS No:",{"$f":"'Study Overview'!I21","v":0}]
[null,"Short Title:",{"$f":"'Study Overview'!C20","v":0}]
[null,"Investigator:",{"$f":"'Study Overview'!C21","v":0}]
[]
[]
[null,"Impact Form for Clinical Trials",null,null,null,null,null,null,null,"Research & Development"]
[]
[null,"Involvement of Service Department -  Medical Physics",null,null,null,null,null,null,null,"Enter \"X\" for Not Required:"]
[null,"Please identify all tests that are required as part of the trial that are in addition to routine procedures and record below."]
[null,"Service Department",null,"Involved (X)= Yes","No of Tests In Addition To Routine Care per patient",null,"Comments"]
[null,"Radiation Protection:                           e.g. IRMER or ARSAC",null,null,"Please refer to guidance"]
[null,"Radiotherapy Physics:"]
[null,"Quality Assurance:         "]
[null,"Other:"]
[null,"R&D will submit this form for you, unless this has previously been actioned."]
[null,"If previously actioned:"]
[null,"Date submitted to department:"]
[null,"Please print Submitted by:"]
[]
[null,"Approval Conditions:"]
[null,"Please print"]
[null,"Name of person giving approval:",null,null,null,null,"Approval Signature:",null,null,"Date:"]
[null,null,"Title:",null,null,null,"or email confirmation"]
[null,null,"Contact Number:"]
[]
[]
[]
[null,{"$f":"'Study Overview'!B68","v":"If when you type, the box has not expanded and the text is hidden, please double click the cell and press \"Enter\"."}]
[null,{"$f":"'Study Overview'!B69","v":"The action of leaving a merged cell with text wrapping triggers a macro programme that expands the row."}]
[null,"Click here for help"]
[]
[null,"Click here for Guidance Notes"]

{"sheet":"Allied Health","index":12,"n_rows":40,"n_cols":10,"rows_kept":40,"cut":false,"hidden":false,"merged":[[32,3,32,5],[32,7,32,8],[39,1,39,2],[30,3,30,5],[30,7,30,8],[33,1,33,11],[37,1,37,2],[31,3,31,5],[31,7,31,8],[25,3,26,5],[29,10,29,11],[25,1,25,2],[27,1,27,2],[27,3,27,11],[28,3,28,5],[28,7,28,8],[29,1,29,2],[29,3,29,5],[29,7,29,8],[24,3,24,5],[22,1,22,11],[23,1,23,2],[21,1,21,2],[21,4,21,5],[23,3,23,5],[24,1,24,2],[13,1,13,2],[13,4,13,5],[14,1,14,2],[14,4,14,5],[15,1,15,2],[15,4,15,5],[16,1,16,2],[16,4,16,5],[20,1,20,2],[20,4,20,5],[17,4,17,5],[18,1,18,2],[18,4,18,5],[19,1,19,2],[19,4,19,5],[11,4,11,5],[12,1,12,2],[12,4,12,5],[1,2,1,5],[2,2,2,5],[8,1,8,8],[9,1,9,11],[10,1,10,2],[10,4,10,5],[8,9,8,10],[11,1,11,2],[10,7,10,11]]}
[null,"R&D No:",{"$f":"'Study Overview'!I20","v":0}]
[null,"IRAS No:",{"$f":"'Study Overview'!I21","v":0}]
[null,"Short Title:",{"$f":"'Study Overview'!C20","v":0}]
[null,"Investigator:",{"$f":"'Study Overview'!C21","v":0}]
[]
[]
[null,"Impact Form for Clinical Trials",null,null,null,null,null,null,null,"Research & Development"]
[]
[null,"Involvement of Service Department - Allied Health",null,null,null,null,null,null,null,"Enter \"X\" for Not Required:"]
[null,"Please identify all tests that are required as part of the trial that are in addition to routine procedures."]
[null,"Service Department",null,"Involved (X)= Yes","Type of Intervention",null,"Number in Addition to Routine Care per patient","Comments"]
[null,"Physiotherapy:"]
[null,"Pain Management:"]
[null,"Dietitian:"]
[null,"Occupational Therapy:"]
[null,"Podiatry"]
[null,"Speech and Language Therapy:"]
[null,"Other:"]
[]
[]
[]
[]
[null,"R&D will submit this form for you, unless this has previously been actioned."]
[null,"If previously actioned:"]
[null,"Date submitted to department:"]
[null,"Please print Submitted by:"]
[]
[null,"Approval Conditions:"]
[null,"Please print"]
[null,"Name of person giving approval:",null,null,null,null,"Approval Signature:",null,null,"Date:"]
[null,null,"Title:",null,null,null,"or email confirmation"]
[null,null,"Contact Number:"]
[]
[]
[]
[null,{"$f":"'Study Overview'!B68","v":"If when you type, the box has not expanded and the text is hidden, please double click the cell and press \"Enter\"."}]
[null,{"$f":"'Study Overview'!B69","v":"The action of leaving a merged cell with text wrapping triggers a macro programme that expands the row."}]
[null,"Click here for help"]
[]
[null,"Click here for Guidance Notes"]

{"sheet":"Other Dept","index":13,"n_rows":33,"n_cols":10,"rows_kept":33,"cut":false,"hidden":false,"merged":[[23,7,23,8],[22,10,22,11],[21,3,21,5],[23,3,23,5],[32,1,32,2],[30,1,30,2],[26,1,26,11],[24,7,24,8],[25,7,25,8],[25,3,25,5],[24,3,24,5],[18,3,19,5],[20,1,20,2],[18,1,18,2],[20,3,20,11],[22,1,22,2],[22,3,22,5],[21,7,21,8],[22,7,22,8],[17,1,17,2],[17,3,17,5],[14,1,14,2],[16,3,16,5],[8,1,8,8],[13,4,13,5],[11,6,11,11],[12,6,12,11],[13,1,13,2],[14,6,14,11],[11,4,11,5],[12,4,12,5],[14,4,14,5],[13,6,13,11],[15,1,15,11],[16,1,16,2],[1,2,1,5],[2,2,2,5],[12,1,12,2],[9,1,9,11],[11,1,11,2],[10,4,10,5],[10,6,10,11],[10,1,10,2],[8,9,8,10]]}
[null,"R&D No:",{"$f":"'Study Overview'!I20","v":0}]
[null,"IRAS No:",{"$f":"'Study Overview'!I21","v":0}]
[null,"Short Title:",{"$f":"'Study Overview'!C20","v":0}]
[null,"Investigator:",{"$f":"'Study Overview'!C21","v":0}]
[]
[]
[null,"Impact Form for Clinical Trials",null,null,null,null,null,null,null,"Research & Development"]
[]
[null,"Involvement of Service Department -  Other e.g. Radiotherapy Department, Ward or Day Case Unit",null,null,null,null,null,null,null,"Enter \"X\" for Not Required:"]
[null,"Please identify all additional activity required as part of the trial, if not already recorded on \"Standard Treatment\" page."]
[null,"Service Department",null,"Involved (X)= Yes","No of Treatments or Visits In Addition To Routine Care per patient",null,"Comments"]
[null,"Please select from list:"]
[null,"Please select from list:"]
[null,"Please select from list:"]
[null,"Other:"]
[null,"R&D will submit this form for you, unless this has previously been actioned."]
[null,"If previously actioned:"]
[null,"Date submitted to department:"]
[null,"Please print Submitted by:"]
[]
[null,"Approval Conditions:"]
[null,"Please print"]
[null,"Name of person giving approval:",null,null,null,null,"Approval Signature:",null,null,"Date:"]
[null,null,"Title:",null,null,null,"or email confirmation"]
[null,null,"Contact Number:"]
[]
[]
[]
[null,{"$f":"'Study Overview'!B68","v":"If when you type, the box has not expanded and the text is hidden, please double click the cell and press \"Enter\"."}]
[null,{"$f":"'Study Overview'!B69","v":"The action of leaving a merged cell with text wrapping triggers a macro programme that expands the row."}]
[null,"Click here for help"]
[]
[null,"Click here for Guidance Notes"]

{"sheet":"Key Contacts Support Depts ","index":14,"n_rows":45,"n_cols":8,"rows_kept":45,"cut":false,"hidden":false,"merged":[]}
["Support Departments - Key Contacts"]
[]
["Department ","Co-ordinator Contact","Co-ordinator Title","Telephone Number/Fax","Professional Contact","Professional Title","Telephone Number/Fax","Quality Assurance         (If Applicable)"]
["Audiology (CHIME Social Enterprise)",null,null,null,"Dr Kelvin Wakeham","Deputy Clinical Director ",2224]
["Anaesthetics (Lumbar Punctures)",null,null,null,"Quentin Milner","Clinical Director / Consultant",3391]
["Blood Sciences (Eastern)","Adrian Cudmore",null,null,"Adrian Cudmore","Laboratory Manager",2959,"Jeni Davies"]
[null,"Tim McDonald",null,null,"Tim McDonald","Principal Clinical Scientist",2948]
["Blood Sciences (Northern)",null,null,null,"rduh.pathologynddh@nhs.net "]
["Bolham Ward",null,null,null,"Anny Willett","Ward Manager",2777]
["Breast Care (Mammography)",null,null,null,"Sarah Sheldon \n\n\n\nRachael Currie","Advanced Radiographic Practitioner\n\nConsultant Radiologist","2696\n\n\n\n2482"]
["Cardiology","Andrew Jones\n","Chief Echo Physiologist",2277,"Andrew Jones\n\nNicola Wilson","Chief Echo Physiologist \n\nCardiac Technician","3966\n\n2272"]
["Cherrybrook Ward",null,null,null,"Melanie Ruben\n\nmelanie.ruben@nhs.net","Clinical Nurse Manager",8757]
["CRF Lab",null,null,null,"Marcus Mitchell\n\ncc: Anna Barnes\nanna.barnes5@nhs.net","Lab Manager\n\n"]
["Cytology",null,null,null,"Carina Hume","Laboratory Manager",2986,"Carina Hume"]
[null,null,null,null,"Dr Paul McCullough","Consultant Histopathologist ",6420]
["Dietitian",null,null,null,"Catherine Tancock","Nutrition and Dietetic Service Manager","3751 or 3779"]
["Endoscopy",null,null,null,"Dr Christopher Calvert","Consultant Gastroenterologist",8346]
["Histopathology (Eastern)",null,null,null,"Carina Hume","Laboratory Manager",2986,"Richard Gilbert"]
[null,null,null,null,"Dr Trupti Mandalia","Consultant Histopathologist ",4500]
["Histopathology (Northern)",null,null,null,"rduh.histopathologynorth@nhs.net\n\ncc: Rebecca Neale ","\n\n\nSecretary"]
["Immunology/Blood Transfusion",null,null,null,"Adrian Cudmore","Laboratory Manager",2932]
["Infection Control","Judy Potter ","Infection control Nurse Manager",2690,"Dr Marina Morgan","Consultant Microbiologist",2690]
["Information Technology",null,null,null,"John Treadwell","IT Infrastructure Delivery Manager",2388]
["Medical Physics","Helen O'Brien","Radiation Protection",2125,"Enuardo Villarrealbarajas\n\ncc: Rob Biggar","Director of Medical Physics\n\nClinical Scientist\n","2127\n\n\n4576"]
["Microbiology",null,null,null,"Anne Chapman","Laboratory Manager",2974,"Lee Joslin"]
[null,null,null,null,"Cressida Auckland\n\ncc: Michele Heritage ","Consultant\n\nAdministrator","6459\n\n4882"]
["Molecular Genetics",null,null,null,"Dr Andrew Parrish\n\ncc: Kathryn Maguire","Principal Clinical Scientist\nCluster Manager",8265]
["Mortuary",null,null,null,"Martin Goddard","Mortuary Manager",3052,"Colin Stewart"]
["Nuclear Medicine",null,null,null,"Richard Poyner","Chief Technologist ",2124]
["Ophthalmology",null,null,null,"Dr Michael Smith","Consultant Ophthalmologist",6316]
["Pharmacy (Eastern)","Ceri Davies","Pharmacy Trials Manager",2444,"Shirley Todd","Clinical Trials Pharmacist",2444]
["Pharmacy (Northern)",null,null,null,"Henry Goss\n\nhenrygoss@nhs.net ","Clinical Trials Pharmacy Manager"]
["Phlebotomy",null,null,null,"Aled Lewis","Deputy Manager",2857]
[null,null,null,null,"Amanda Sharland","Blood Science Chief Phlebotomist",3906]
["Physiotherapy OT",null,null,null,"Ros Wade","Lead Physiotherapist",2487]
["Pulmonary Function",null,null,null,"Ian Martin","Respiratory Physiologist",2140]
["Radiology (Eastern)","Sally Roscoe","Admin Manager",2334,"Laura Gellett","Consultant Radiologist",3994,"Martin Ives"]
["Radiology (Northern)",null,null,null,"Jennifer Macpherson\n\njennifer.macpherson@nhs.net ","Consultant Radiologist"]
["Radiology (Breast)",null,null,null,"Rachael Currie, Russell Davies and Simon Ewart\n\ncc: Gill Baker","Breast Radiologists\n\n\n\nCluster Manager"]
["Radiotherapy","Frances Hood","Research Radiographer","2116 bleep 6254","Helen Slaney","Oncology Centre Manager",2111,"Helen Slaney"]
["Speech and Language","Nicola Harding","Clinical Coordinator",3980]
["Theatres",null,null,null,"Judith Otto","Matron",6668]
["Virology",null,null,null,"Anne Chapman\n\nCressida Auckland \n\ncc: Michele Heritage ","Laboratory Manager\n\nConsultant\n\nAdministrator\n","2974\n\n6459\n\n4882"]
["Wynard Ward",null,null,null,"Louise Steventon","Ward Manager",6512]
["Yarty Ward",null,null,null,"Clare Rowley (Onc)\nNeil Toghill (Haem)","Ward Manager","2872\n2870"]

{"sheet":"Guidance Notes","index":15,"n_rows":19,"n_cols":4,"rows_kept":19,"cut":false,"hidden":false,"merged":[]}
["Impact Form for Research - Guidance Notes"]
[]
["Link to:"]
[null,"Study Overview",null,"A general overview to establish safety and training needs"]
[null,"Standard Treatment",null,"To ensure R&D can properly reimburse departments, this page is designed to establish additional impact on care and services as a result of the trial"]
[null,"Sample Preparation",null,"This page is only to be completed if you are collecting/storing samples.  This will help us identify where samples are being stored within the hospital, which samples will need to be transferred to the RD&E Tissue Bank after study closure and help us comply with HTA regulations."]
[null,"Involvement of Service Department:",null,"You need only to complete a page for the relevant departments involved"]
[null,null,null,"Please ask the named R&D contact for each department to sign their page or email an acknowlegement"]
[null,null,null,"A wet signature is not required if you are able to forward email evidence that the departments have been informed"]
[]
[null,null,"Pharmacy","If the trial contains ANY medicine (routine or not) please make Pharmacy your first port of call"]
[null,null,"Radiology/Imaging","If the trial contains ANY imaging (routine or not) please contact Radiology for sign off/approval.  This will help us establish additional impact on the service "]
[null,null,"Blood Sciences","If the trial contains ANY Blood Sciences involvement (routine or not) please contact Blood Sciences for sign off/approval.  This will help us establish additional impact on the service "]
[null,null,"Pathology","If the trial contains ANY Pathology (routine or not) please contact Pathology for sign off/approval.  This will help us establish additional impact on the service "]
[null,null,"Medical Physics","If the trial contains ANY Medical Physics involvement (routine or not) please contact Medical Physics for sign off/approval.  This will help us establish additional impact on the service "]
[null,null,"Allied Health","If the trial contains ANY Allied Health involvement (routine or not) please contact the identified department for sign off/approval.  This will help us establish additional impact on the service "]
[null,null,"Other Dept (Service Department)","If the trial requires ADDITIONAL general nursing/theatre input (not provided by a Research Nurse), additional visits or o/n stays, please complete this page."]
[]
[null,"Back to the Top"]

{"sheet":"HELP","index":16,"n_rows":148,"n_cols":7,"rows_kept":148,"cut":false,"hidden":false,"merged":[[89,1,89,14],[121,0,121,5],[20,0,20,4],[0,0,0,5],[38,1,38,10],[39,1,39,10],[62,6,62,14],[3,1,3,4],[61,6,61,10],[59,1,59,10],[43,1,43,13],[4,1,4,4],[5,1,5,5],[37,0,37,4],[88,1,88,14]]}
["Impact Form for Research - HELP"]
[]
["Index:"]
[null,"Keys for entering data"]
[null,"Rows do not expand when I type"]
[null,"Select one or multiple worksheets for printing"]
[]
["Back to:"]
[null,"Study Overview"]
[null,"Standard Treatment"]
[null,"Sample Preparation"]
[null,"Involvement of Service Department:"]
[null,null,"Pharmacy"]
[null,null,"Radiology/Imaging"]
[null,null,"Blood Sciences"]
[null,null,"Pathology"]
[null,null,"Medical Physics"]
[null,null,"Allied Health"]
[null,null,"Other Dept (Service Department)"]
[]
["Keys for entering data"]
[]
[null,"To do this",null,null,null,null,"Press"]
[null,"Complete a cell entry and select the cell below.",null,null,null,null,"ENTER"]
[null,"Start a new line in the same cell.",null,null,null,null,"ALT+ENTER"]
[null,"Fill the selected cell range with the current entry.",null,null,null,null,"CTRL+ENTER"]
[null,"Complete a cell entry and select the previous cell above.",null,null,null,null,"SHIFT+ENTER"]
[null,"Complete a cell entry and select the next cell to the right.",null,null,null,null,"TAB"]
[null,"Complete a cell entry and select the previous cell to the left.",null,null,null,null,"SHIFT+TAB"]
[null,"Cancel a cell entry.",null,null,null,null,"ESC"]
[null,"Move one character up, down, left, or right.",null,null,null,null,"Arrow keys"]
[null,"Move to the beginning of the line.",null,null,null,null,"HOME"]
[]
[]
[]
[]
[]
["Rows do not expand when I type"]
[null,{"$f":"'Study Overview'!B68:K68","v":"If when you type, the box has not expanded and the text is hidden, please double click the cell and press \"Enter\"."}]
[null,{"$f":"'Study Overview'!B69:K69","v":"The action of leaving a merged cell with text wrapping triggers a macro programme that expands the row."}]
[]
[null,"You do not need to know this, but it might help explain why I have had to add the red text!"]
[]
[null,"There is a bug in Excel. If there are merged cells with text wrapping anywhere in the row, the row will not expand.  The action of leaving a merged cell with text wrapping triggers a macro programme that expands the row. "]
[]
[null,"“When you have text wrap turned on in a cell, Excel expands the height of the row"]
[null,"as you add more text to the cell. When you merge two cells that have text wrap"]
[null,"turned on, Excel won't adjust the row height to accommodate the text in the cell."]
[null,"The macro code activates on exiting the cell. To activate, double click the cell"]
[null,"containing the text and press Return key."]
[]
[null,"Maximum number of characters in the cell that will work is 1222.”"]
[]
[null,"Back to the Top"]
[]
[]
[null,"To enable the macro to run;"]
[]
[null,"Excel 2003"]
[null,"Go to the Security dialog box from the Tools menu and select Macro | Security, and select the \"Medium\" radio button, as shown in the following illustration."]
[]
[null,null,null,null,null,null,"Whenever you then open a workbook that contains macros, as in this case, Excel displays a dialog box asking if you want to enable macros. You have the following options:"]
[null,null,null,null,null,null,"Click Enable Macros to open the workbook and allow the macros to run in the workbook."]
[]
[]
[]
[]
[]
[]
[]
[]
[]
[]
[]
[]
[]
[]
[]
[]
[]
[]
[null,"Back to the Top"]
[]
[]
[null,"Excel 2007"]
[null,"Click the Microsoft Office Button ,",null,null,null,"and then click Excel Options. "]
[null,"Click Trust Center, click Trust Center Settings, and then click Macro Settings. "]
[null,"Click the Disable all macros with notification option: "]
[null,"This is the default setting. Clicking this disables all macros, but you will get a security alert as a macro present. This way, you can choose when to enable those macros on a case by case basis."]
[null,"Disable all macros with notification This is the default setting. Click this option if you want macros to be disabled, but you want to get security alerts if there are macros present. This way, you can choose when to enable those macros on a case by case basis. "]
[]
[null,"Back to the Top"]
[]
[]
[null,"Excel 2010"]
[null,"Click the File tab. The Backstage view opens."]
[null,"Under Help, click Options; the Options dialog box appears."]
[null,"Click Trust Center, then click Trust Center Settings."]
[null,"In the Trust Center, click Macro Settings."]
[null,"Make the selections that you want. Click OK."]
[]
[]
[]
[]
[]
[]
[]
[]
[]
[]
[]
[]
[]
[]
[]
[]
[null,"Any problems, please contact Roger Dunn Tel: 6972"]
[]
[null,"Back to the Top"]
[]
[]
["Select one or multiple worksheets for printing",null,null,null,null,null,"Please only use this feature for printing selected worksheets. Ungroup when entering data."]
[]
[]
[]
[]
[]
[]
[]
[]
[]
[]
[]
[]
[]
[]
[]
[]
[]
[]
[]
[]
[]
[]
["BEWARE"]
[]
[]
[null,"Back to the Top"]

{"sheet":"Lookup","index":17,"n_rows":81,"n_cols":25,"rows_kept":81,"cut":false,"hidden":true,"merged":[]}
["Lookup tables for Drop Down Boxes"]
[null,null,null,null,null,null,null,null,null,"From ReDA","From IM&T"]
[null,null,null,null,null,null,null,null,null,"Use this",null,null,"RDE Specialty Lookup",null,null,"Combined Division and Specialty","RDE Specialty Lookup","Network Division",null,"Combined Network Division and Specialty","Commercial Plans","Sample Preparation","Sample Preparation","Treatment/Activity"]
["Type of Study","Phase of Study","Patient Group:","Directorate","Cardiology","Medical Physics:","Pathology:","Radiology/Imaging:","Conducted By:","Department","Department","Pharmacy","Division","Cluster","Specialty","RD&E Division/Specialty","Division","Division","Specialty","Network Division/Specialty","Surplus Spending","Storage Type Format","Storage Type Conditions","Activity","Trust Team"]
["Please select from list:","Please click & select from list:","Please select from list:","Please select from list:","Please select from list:","Please select from list:","Please select from list:","Please select from list:","Please select from list:","Please select from list:","Please select from list:","Please select from list:",null,null,"Please select from list:",{"$f":"O5","v":"Please select from list:"},"Please select from list:",null,null,"Please select from list:","Please select from list:","Please select from list:","Please select from list:","Please select from list:","Please select from list"]
[]
["Commercial","Phase I - Contact R&D","Cancer","Cancer Services","Echocardiography - ECHO","Bone Densitometry (DXA Scans)","Blood Transfusion","Carotid and Peripheral Arteria","Consultant","A&E Dept","Anaesthetics","Dispensary","Division A - Surgical Services","Cluster 1","Breast Care Unit",{"$f":"CONCATENATE(M7,\" | \",N7,\" | \",O7)","v":"Division A - Surgical Services | Cluster 1 | Breast Care Unit"},"Division A - Surgical Services","Division 1","Cancer",{"$f":"CONCATENATE(R7,\" | \",S7)","v":"Division 1 | Cancer"},"Staff","Thermo 96 (2D)","-80C","Consent","Hartland"]
["Shared Care Site","Phase II","DeNDRoN","Child & Womens Health","Electrocardiography - ECG","Brachytherapy","Clinical Chemistry","CT Scanning","Nurse","Acute Medical Unit","Ante-Natal Clinic","CIVAS","Division A - Surgical Services","Cluster 1","Breast Surgery ",{"$f":"CONCATENATE(M8,\" | \",N8,\" | \",O8)","v":"Division A - Surgical Services | Cluster 1 | Breast Surgery "},"Division B - Medical Services","Division 2","Diabetes",{"$f":"CONCATENATE(R8,\" | \",S8)","v":"Division 2 | Diabetes"},"Conferences","Fluid 96 (2D)","-40C","Administering","Bellever"]
["Continuing Care Site","Phase II a","Diabetes","Critical Care","Other","Multi Gated Acquisition Scan - MUGA","Cytopathology","Fluoroscopy","Consultant & Nurse","Anaesthetics","Bowel Screening Prog",null,"Division A - Surgical Services","Cluster 1","ENT ","Division A - Surgical Services | Cluster 1 | ENT ","Division C - Specialist Services","Division 2","Metabolic and Endocrine","Division 2 | Metabolic and Endocrine","Training","DNA 96 (2D)","-20C","Follow-up","Dewerstone"]
["Patient Identification Centre (PIC)","Phase II b","Stroke","Diagnostics",null,"Nulclear Medicine","Haemotology","Interventional Procedures","Practitioner","Audiology","Cardiology",null,"Division A - Surgical Services","Cluster 1","Maxfax/Oral Surgery/Orthodontics","Division A - Surgical Services | Cluster 1 | Maxfax/Oral Surgery/Orthodontics",null,"Division 2","Renal","Division 2 | Renal","Equipment","Cryobox Large (10cm)","4-8C (refridgerated)","Non-surgical Intervention","Gidleigh"]
["Non Commercial","Phase II c","Comprehensive","Medicine",null,"Radiation Protection - ARSAC","Histopathology","Intravenous Urogram - IVU","Other","Cardiology","Clin. Neuro-Physiology",null,"Division A - Surgical Services","Cluster 1","Ophthalmology","Division A - Surgical Services | Cluster 1 | Ophthalmology",null,"Division 2","Stroke","Division 2 | Stroke",null,"Cryobox Small (5cm)","Ambient","Phlebotomy","Rosemoor"]
["Data Collection Site","Phase III","Medicines for Children","Professional",null,"Radiation Protection - IRMER","Immunology","MRI Scanning",null,"Care of the Elderly","Clinical Genetics",null,"Division A - Surgical Services","Cluster 1","Plastics","Division A - Surgical Services | Cluster 1 | Plastics",null,"Division 2","Cardiovascular","Division 2 | Cardiovascular",null,"Other unrackable boxes","Other (Please specify)","Physiotherapy","CRF"]
["Observational Network","Phase IV","Mental Health","Research & Development",null,"Radiotherapy Physics","Microbiology","Plain X-rays",null,"Chemical Pathology","Clinical Immunology",null,"Division A - Surgical Services","Cluster 2","Orthopaedics/Trauma","Division A - Surgical Services | Cluster 2 | Orthopaedics/Trauma",null,"Division 3","Children","Division 3 | Children",null,null,null,"Scans","PRC"]
["Student*","Unknown","Primary Care ","Special Surgery",null,"X-ray Quality Assurance","Molecular Genetics","Ultrasound",null,"Clinical Audit Dept","Dermatology",null,"Division A - Surgical Services","Cluster 2","Pain Management","Division A - Surgical Services | Cluster 2 | Pain Management",null,"Division 3","Genetics","Division 3 | Genetics",null,null,null,"Screening","CRN Agile eam"]
["Other","Other","Staff","Surgery",null,"Other","Mortuary",null,null,"Clinical Chemistry","Diabetic Clinic",null,"Division A - Surgical Services","Cluster 2","Rheumatology","Division A - Surgical Services | Cluster 2 | Rheumatology",null,"Division 3","Haematology","Division 3 | Haematology",null,null,null,"Surgery","UoE"]
[null,null,null,"Trauma & Orthopaedic",null,null,"Phlebotomy",null,null,"Clinical Genetics","Ear, Nose & Throat",null,"Division A - Surgical Services","Cluster 3","Colorectal","Division A - Surgical Services | Cluster 3 | Colorectal",null,"Division 3","Reproductive Health and Childbirth","Division 3 | Reproductive Health and Childbirth",null,null,null,"Tumour block retrevial"]
[null,null,null,"Other",null,null,"Other",null,null,"Clinical Measurement","Endocrinology Clinic",null,"Division A - Surgical Services","Cluster 3","Thoracic/Thoracic Trauma","Division A - Surgical Services | Cluster 3 | Thoracic/Thoracic Trauma",null,"Division 4","DENDRON (Dementia and Neurodegeneration)","Division 4 | DENDRON (Dementia and Neurodegeneration)",null,null,null,"Other"]
[null,null,null,null,null,null,null,null,null,"Clinical Research Facility","Gastroenterology",null,"Division A - Surgical Services","Cluster 3","Upper GI","Division A - Surgical Services | Cluster 3 | Upper GI",null,"Division 4","Neurological Disorders","Division 4 | Neurological Disorders"]
[null,null,null,null,null,null,null,null,null,"Colorectal surgery","General Medicine",null,"Division A - Surgical Services","Cluster 3","Urology","Division A - Surgical Services | Cluster 3 | Urology",null,"Division 4","Mental Health","Division 4 | Mental Health"]
[null,null,null,null,null,null,null,null,null,"Dermatology","General Surgery",null,"Division A - Surgical Services","Cluster 3","Vascular","Division A - Surgical Services | Cluster 3 | Vascular",null,"Division 5","Primary Care","Division 5 | Primary Care"]
[null,null,null,null,null,null,null,null,null,"Diabetes","Geriatric Medicine",null,"Division A - Surgical Services","Cluster 4","Anaesthetics","Division A - Surgical Services | Cluster 4 | Anaesthetics",null,"Division 5","Ageing","Division 5 | Ageing"]
["Version Number","Date","Change",null,null,null,null,null,null,"Diabetes (non DVRC)","Gynaecology",null,"Division A - Surgical Services","Cluster 4","ICU","Division A - Surgical Services | Cluster 4 | ICU",null,"Division 5","Health Service and Delivery Research","Division 5 | Health Service and Delivery Research"]
[1.6,null,"Grouped controls and formatted \"Move and size with cells\"",null,null,null,null,null,null,"Diagnostics - Imaging","Haematology",null,"Division A - Surgical Services","Cluster 4","Theatres","Division A - Surgical Services | Cluster 4 | Theatres",null,"Division 5","Oral and Dental health","Division 5 | Oral and Dental health"]
[1.7,null,"Removed Check Box controls: Instead, to type \"X\" as required",null,null,null,null,null,null,"Diagnostics - Other","Hosp Pract'r - MTS",null,"Division B - Medical Services","Cluster 1","Acute Medicine","Division B - Medical Services | Cluster 1 | Acute Medicine",null,"Division 5","Public Health","Division 5 | Public Health"]
[1.8,null,"Modified Standard Treatment and added Sample Preparation tab and then numerious minor grid changes and text on most sheets",null,null,null,null,null,null,"Endocrinology","Hosp Pract'r - PMM",null,"Division B - Medical Services","Cluster 1","ED","Division B - Medical Services | Cluster 1 | ED",null,"Division 5","Musculoskeletal Disorders","Division 5 | Musculoskeletal Disorders"]
[1.9,"2015-04-01","Modified Study Overview|Participants and Recruitment: To help identify studies that could potentially effect FPFV & T2T benchmarks",null,null,null,null,null,null,"ENT","Medical Oncology",null,"Division B - Medical Services","Cluster 1","Healthcare for Older People","Division B - Medical Services | Cluster 1 | Healthcare for Older People",null,"Division 5","Dermatology","Division 5 | Dermatology"]
[2,"2015-06-01","Modified Study Overview|Participants and Recruitment: To help identify studies that could potentially effect FPFV & T2T benchmarks",null,null,null,null,null,null,"Facilities","Midwifery",null,"Division B - Medical Services","Cluster 2","Neurology","Division B - Medical Services | Cluster 2 | Neurology",null,"Division 6","Anaesthetics Perioperative and Pain Management","Division 6 | Anaesthetics Perioperative and Pain Management"]
[3,"2015-06-01","Study Overview tab|Study Overview: Added Network Division/Specialty & renamed Division/Specialty to RD&E Division/Specialty. Updated Contact details",null,null,null,null,null,null,"Gastroenterology","Neonatology",null,"Division B - Medical Services","Cluster 2","Rehabilitation","Division B - Medical Services | Cluster 2 | Rehabilitation",null,"Division 6","Critical Care","Division 6 | Critical Care"]
[4,"2015-10-08","Layout changed on all tabs",null,null,null,null,null,null,"General Medicine","Nephrology",null,"Division B - Medical Services","Cluster 2","Respiratory","Division B - Medical Services | Cluster 2 | Respiratory",null,"Division 6","Injuries and Emergencies","Division 6 | Injuries and Emergencies"]
[null,null,null,null,null,null,null,null,null,"General Surgery","Neurology",null,"Division B - Medical Services","Cluster 2","Stroke","Division B - Medical Services | Cluster 2 | Stroke",null,"Division 6","Surgery","Division 6 | Surgery"]
[null,null,null,null,null,null,null,null,null,"Genetics","Obesity Clinic (EMOS)",null,"Division B - Medical Services","Cluster 3","Diabetes","Division B - Medical Services | Cluster 3 | Diabetes",null,"Division 6","Ear Nose & Throat","Division 6 | Ear Nose & Throat"]
[null,null,null,null,null,null,null,null,null,"GU Medicine","Ophthalmology",null,"Division B - Medical Services","Cluster 3","Endocrine","Division B - Medical Services | Cluster 3 | Endocrine",null,"Division 6","Infectious Disease and Microbiology","Division 6 | Infectious Disease and Microbiology"]
[null,null,null,null,null,null,null,null,null,"Haematology","Oral Surgery",null,"Division B - Medical Services","Cluster 3","Obesity","Division B - Medical Services | Cluster 3 | Obesity",null,"Division 6","Ophthamology","Division 6 | Ophthamology"]
[null,null,null,null,null,null,null,null,null,"Haematology Labs","Orthodontics",null,"Division B - Medical Services","Cluster 3","Renal","Division B - Medical Services | Cluster 3 | Renal",null,"Division 6","Respiratory","Division 6 | Respiratory"]
[null,null,null,null,null,null,null,null,null,"Histopathology","Orthopaedics",null,"Division B - Medical Services","Cluster 4","Cardiology","Division B - Medical Services | Cluster 4 | Cardiology",null,"Division 6","Gastroenterology","Division 6 | Gastroenterology"]
[null,null,null,null,null,null,null,null,null,"Honeylands, Specialist Children's Centre","Paediat. Endocrinology",null,"Division B - Medical Services","Cluster 4","Dermatology","Division B - Medical Services | Cluster 4 | Dermatology",null,"Division 6","Hepatology","Division 6 | Hepatology"]
[null,null,null,null,null,null,null,null,null,"Infection Control","Paediatric Cardiology",null,"Division B - Medical Services","Cluster 4","Gastroenterology/Endoscopy","Division B - Medical Services | Cluster 4 | Gastroenterology/Endoscopy"]
[null,null,null,null,null,null,null,null,null,"Intensive Care Unit","Paediatric Neurology",null,"Division C - Specialist Services","Cluster 1","Neonatal","Division C - Specialist Services | Cluster 1 | Neonatal"]
[null,null,null,null,null,null,null,null,null,"Mardon Centre","Paediatric Oncology",null,"Division C - Specialist Services","Cluster 1","Obstetrics & Gynae/Maternity","Division C - Specialist Services | Cluster 1 | Obstetrics & Gynae/Maternity"]
[null,null,null,null,null,null,null,null,null,"Maternity","Paediatric Surgery",null,"Division C - Specialist Services","Cluster 1","Paediatrics","Division C - Specialist Services | Cluster 1 | Paediatrics"]
[null,null,null,null,null,null,null,null,null,"Medical","Paediatrics",null,"Division C - Specialist Services","Cluster 2","Clinical Measurements ","Division C - Specialist Services | Cluster 2 | Clinical Measurements "]
[null,null,null,null,null,null,null,null,null,"Medical - Photography","Plastic Surgery",null,"Division C - Specialist Services","Cluster 2","Pathology","Division C - Specialist Services | Cluster 2 | Pathology"]
[null,null,null,null,null,null,null,null,null,"Medical - Physics","Post-Natal Clinic",null,"Division C - Specialist Services","Cluster 2","Radiology","Division C - Specialist Services | Cluster 2 | Radiology"]
[null,null,null,null,null,null,null,null,null,"Microbiology","Radiotherapy",null,"Division C - Specialist Services","Cluster 3","Cancer Services","Division C - Specialist Services | Cluster 3 | Cancer Services"]
[null,null,null,null,null,null,null,null,null,"Microvascular","Renal Surgery",null,"Division C - Specialist Services","Cluster 3","Clinical Haematology","Division C - Specialist Services | Cluster 3 | Clinical Haematology"]
[null,null,null,null,null,null,null,null,null,"Molecular Genetics","Rheumatology",null,"Division C - Specialist Services","Cluster 3","Dexa Scanning","Division C - Specialist Services | Cluster 3 | Dexa Scanning"]
[null,null,null,null,null,null,null,null,null,"Neonatal","Subfertility Clinic",null,"Division C - Specialist Services","Cluster 3","Lymphodema","Division C - Specialist Services | Cluster 3 | Lymphodema"]
[null,null,null,null,null,null,null,null,null,"Neurology","Thoracic Medicine",null,"Division C - Specialist Services","Cluster 3","Medical Physics","Division C - Specialist Services | Cluster 3 | Medical Physics"]
[null,null,null,null,null,null,null,null,null,"Nuclear Medicine","Thoracic Surgery",null,"Division C - Specialist Services","Cluster 3","Nuclear Medicine","Division C - Specialist Services | Cluster 3 | Nuclear Medicine"]
[null,null,null,null,null,null,null,null,null,"Obstetrics and Gynaecology","Trauma",null,"Division C - Specialist Services","Cluster 3","Oncology","Division C - Specialist Services | Cluster 3 | Oncology"]
[null,null,null,null,null,null,null,null,null,"Occupational Therapy","Urology",null,"Division C - Specialist Services","Cluster 3","Radiation Protection","Division C - Specialist Services | Cluster 3 | Radiation Protection"]
[null,null,null,null,null,null,null,null,null,"Oncology","Varicose Veins",null,"Division C - Specialist Services","Cluster 3","Radiotherapy Physics","Division C - Specialist Services | Cluster 3 | Radiotherapy Physics"]
[null,null,null,null,null,null,null,null,null,"Ophthalmology",null,null,"Division C - Specialist Services","Cluster 4","Clinical Genetics","Division C - Specialist Services | Cluster 4 | Clinical Genetics"]
[null,null,null,null,null,null,null,null,null,"Orthodontics",null,null,"Division C - Specialist Services","Cluster 4","Molecular Genetics","Division C - Specialist Services | Cluster 4 | Molecular Genetics"]
[null,null,null,null,null,null,null,null,null,"Orthopaedics",null,null,"Division C - Specialist Services","Cluster 4","Peninsular Genetics Service","Division C - Specialist Services | Cluster 4 | Peninsular Genetics Service"]
[null,null,null,null,null,null,null,null,null,"Paediatric Oncology",null,null,"Division C - Specialist Services","Therapies","Exeter Mobility Centre","Division C - Specialist Services | Therapies | Exeter Mobility Centre"]
[null,null,null,null,null,null,null,null,null,"Paediatrics",null,null,"Division C - Specialist Services","Therapies","Nutrition & Dietetics","Division C - Specialist Services | Therapies | Nutrition & Dietetics"]
[null,null,null,null,null,null,null,null,null,"Pain Management",null,null,"Division C - Specialist Services","Therapies","Occupational Therapy","Division C - Specialist Services | Therapies | Occupational Therapy"]
[null,null,null,null,null,null,null,null,null,"Palliative Care",null,null,"Division C - Specialist Services","Therapies","Physiotherapy","Division C - Specialist Services | Therapies | Physiotherapy"]
[null,null,null,null,null,null,null,null,null,"Pathology",null,null,"Division C - Specialist Services","Therapies","Speech & Language Therapy","Division C - Specialist Services | Therapies | Speech & Language Therapy"]
[null,null,null,null,null,null,null,null,null,"Peninsula Medical School"]
[null,null,null,null,null,null,null,null,null,"Pharmacy - CIVAS"]
[null,null,null,null,null,null,null,null,null,"Pharmacy - Dispensing Drugs"]
[null,null,null,null,null,null,null,null,null,"Physiotherapy"]
[null,null,null,null,null,null,null,null,null,"Plastic Surgery"]
[null,null,null,null,null,null,null,null,null,"Prosthetics Department"]
[null,null,null,null,null,null,null,null,null,"Radiology"]
[null,null,null,null,null,null,null,null,null,"RadioTherapy"]
[null,null,null,null,null,null,null,null,null,"Rehabilitation"]
[null,null,null,null,null,null,null,null,null,"Renal Medicine"]
[null,null,null,null,null,null,null,null,null,"Research & Development"]
[null,null,null,null,null,null,null,null,null,"Respiratory Medicine"]
[null,null,null,null,null,null,null,null,null,"Rheumatology"]
[null,null,null,null,null,null,null,null,null,"Stroke"]
[null,null,null,null,null,null,null,null,null,"Thoracic Surgery"]
[null,null,null,null,null,null,null,null,null,"Trauma"]
[null,null,null,null,null,null,null,null,null,"Urology"]
[null,null,null,null,null,null,null,null,null,"Vascular Medicine"]
[null,null,null,null,null,null,null,null,null,"Vascular Surgery"]
[null,null,null,null,null,null,null,null,null,"West of England Eye Unit - Ophthalmology"]
[null,null,null,null,null,null,null,null,null,"Off Site"]